[Event "2nd Cambridge Open 2024"]
[Site "Cambridge"]
[Date "2024.02.21"]
[Round "5.2"]
[White "Fernandez, Daniel Howard"]
[Black "Tiviakov, Sergei"]
[Result "1/2-1/2"]
[ECO "E16"]
[WhiteElo "2525"]
[BlackElo "2537"]
[Annotator "TA"]
[PlyCount "65"]
[EventDate "2024.02.18"]
[EventType "swiss"]
[EventCountry "ENG"]
[SourceTitle "playchess.com"]
[Source "ChessBase"]
[SourceQuality "1"]
[TimeControl "5400+30"]

{[%evp 13,65,41,45,33,43,45,56,0,-7,0,0,5,4,12,8,7,6,12,8,0,0,0,0,0,0,0,0,0,0,0,0,0,0,0,0,0,0,0,2,2,2,0,0,0,18,0,0,0,0,0,0,0,0,-4]} 1. Nf3 {[%emt 0:12:04]} Nf6 {[%emt 0:00:02]} 2. c4 {[%emt 0:00:42]} b6 {[%emt 0:00:05]} 3. g3 {[%emt 0:00:05]} Bb7 {[%emt 0:00:05]} 4. Bg2 {[%emt 0:00:05]} e6 {[%emt 0:01:59]} 5. O-O {[%emt 0:01:08]} Be7 {[%emt 0:00:03]} 6. d4 {[%emt 0:00:06]} c6 {[%emt 0:00:48]} 7. Nc3 {[%emt 0:00:43]} d5 {[%emt 0:00:05]} 8. Nd2 {[%emt 0:00:14]} O-O {[%emt 0:00:09][%cal Ob6b5]} 9. e4 {[%emt 0:00:16]} Na6 {[%emt 0:00:07]} 10. b3 {[%emt 0:13:13]} (10. e5 $14 Nd7 11. cxd5 cxd5 12. a3) 10... c5 {[%emt 0:25:14] The position is equal.} 11. exd5 {[%emt 0:03:53][%cal Od5d6] [#] And now d6! would win.} exd5 {[%emt 0:05:29]} 12. dxc5 {[%emt 0:02:22]} Nxc5 {[%emt 0:00:08]} 13. Ba3 {[%emt 0:02:12]} Rb8 {[%emt 0:01:11]} 14. Nxd5 {[%emt 0:07:21]} Nxd5 {[%emt 0:00:25]} 15. cxd5 {[%emt 0:00:03]} Bxd5 {[%emt 0:00:07]} 16. Re1 {[%emt 0:01:00] [#] Threatens to win with Bxd5.} Bxg2 {[%emt 0:01:25]} 17. Kxg2 {[%emt 0:03:00]} Ne6 {[%emt 0:00:40]} 18. Bxe7 {[%emt 0:03:22]} Qxe7 {[%emt 0:00:07]} 19. Nf3 {[%emt 0:00:08]} Qb7 {[%emt 0:03:53]} 20. Qe2 {[%emt 0:01:57]} Rfe8 {[%emt 0:07:18]} 21. Qe4 {[%emt 0:01:04] Prevents Nf4+} Qxe4 {[%emt 0:01:35]} 22. Rxe4 {[%emt 0:00:03]} Rbc8 {[%emt 0:00:54]} 23. h4 {[%emt 0:04:12]} Kf8 {[%emt 0:00:51]} 24. b4 {[%emt 0:03:46]} Rc2 {[%emt 0:02:20]} 25. a4 {[%emt 0:03:54][%cal Ba2a4,Ba4a5][%mdl 32]} Rd8 {[%emt 0:01:30]} 26. a5 {[%emt 0:00:29]} b5 {[%emt 0:00:17]} 27. Rae1 {[%emt 0:11:58]} g6 {[%emt 0:01:33]} 28. R1e3 {[%emt 0:06:24]} Kg7 {[%emt 0:03:03]} 29. h5 {[%emt 0:05:35]} Rd6 {[%emt 0:04:13]} 30. Ne1 {[%emt 0:06:17]} Rcd2 {[%emt 0:03:55]} 31. Nf3 {[%emt 0:00:18]} Rc2 {[%emt 0:00:47]} 32. Ne1 {[%emt 0:00:09]} Rcd2 {[%emt 0:01:15]} 33. Nf3 {[%emt 0:00:06] Weighted Error Value: White=0.04 (flawless) /Black=0.02 (flawless) .  Mistake:       	White=1     	---        OK:         	White=11    	Black=10} 1/2-1/2

[Event "2nd Cambridge Open 2024"]
[Site "Cambridge"]
[Date "2024.02.21"]
[Round "5.3"]
[White "Wadsworth, Matthew J"]
[Black "Willow, Jonah B"]
[Result "1/2-1/2"]
[ECO "D35"]
[WhiteElo "2450"]
[BlackElo "2434"]
[Annotator "TA"]
[PlyCount "111"]
[EventDate "2024.02.18"]
[EventType "swiss"]
[EventCountry "ENG"]
[SourceTitle "playchess.com"]
[Source "ChessBase"]
[SourceQuality "1"]
[TimeControl "5400+30"]

{[%evp 12,111,20,20,22,23,34,33,30,27,24,29,28,17,28,22,26,35,41,24,28,18,17,4,9,8,22,0,47,12,20,8,28,0,0,0,5,0,0,0,0,0,0,0,0,-5,0,-43,-27,-23,6,3,8,0,1,0,0,0,8,8,8,0,8,8,8,8,8,0,8,8,8,8,8,8,8,8,8,8,8,8,8,8,8,8,8,0,0,0,0,0,0,0,0,0,0,0,0,0,0,0,0,0]} 1. d4 {[%emt 0:00:02]} Nf6 {[%emt 0:02:50]} 2. c4 {[%emt 0:00:21]} e6 {[%emt 0:00:42]} 3. Nf3 {[%emt 0:00:16]} d5 {[%emt 0:00:41]} 4. Nc3 {[%emt 0:00:08]} Nbd7 {[%emt 0:05:17]} 5. Bf4 {[%emt 0:01:35]} Bb4 {[%emt 0:00:38]} 6. cxd5 {[%emt 0:00:49]} exd5 {[%emt 0:00:05]} 7. e3 {[%emt 0:00:46]} Ne4 {[%emt 0:00:30]} 8. Qc2 {[%emt 0:00:37]} g5 {[%emt 0:00:45]} 9. Be5 {[%emt 0:00:48]} Nxe5 {[%emt 0:00:21] White is slightly better.} 10. Nxe5 {[%emt 0:00:38] [#] Black must now prevent Qa4+.} c6 {[%emt 0:00:04]} 11. Bd3 {[%emt 0:01:37]} f6 {[%emt 0:00:21]} 12. Nf3 {[%emt 0:03:58]} Qe7 {[%emt 0:00:12]} 13. a3 {[%emt 0:09:18]} Bxc3+ {[%emt 0:00:44]} 14. bxc3 {[%emt 0:00:10]} Nd6 {[%emt 0:00:08]} 15. Nd2 {[%emt 0:05:06]} Be6 {[%emt 0:01:12]} 16. c4 {[%emt 0:04:57]} dxc4 {[%emt 0:07:25]} 17. Nxc4 {[%emt 0:00:17]} Nxc4 {[%emt 0:06:54]} 18. Bxc4 {[%emt 0:00:13]} O-O-O {[%emt 0:04:37][%cal Ba8d8,Bd8d5,Bd5a5,Ba5a3][%mdl 32]} 19. O-O {[%emt 0:13:43]} f5 {[%emt 0:07:55]} (19... Bxc4 $11 {was preferrable.} 20. Qxc4 Kb8) 20. Rab1 {[%emt 0:20:26]} Bxc4 {[%emt 0:04:18]} 21. Qxc4 {[%emt 0:00:15]} Rd5 {[%emt 0:13:47]} 22. Rfc1 {[%emt 0:08:23]} Rhd8 {[%emt 0:01:01]} 23. Qa4 {[%emt 0:01:58]} Qc7 $1 {[%emt 0:00:58]} 24. Qxa7 {[%emt 0:07:53] [#] Threatens to win with Qa8+.} Ra5 {[%emt 0:00:37]} 25. Qb6 {[%emt 0:00:07]} Qxb6 {[%emt 0:00:46]} 26. Rxb6 {[%emt 0:00:01]} Rxa3 $11 {[%emt 0:00:07][%mdl 4096] Endgame. KRR-KRR} 27. Rb5 {[%emt 0:00:52]} f4 {[%emt 0:04:35]} 28. Re5 {[%emt 0:05:42]} g4 {[%emt 0:03:38]} 29. g3 {[%emt 0:03:48]} fxe3 {[%emt 0:02:52]} 30. fxe3 {[%emt 0:00:01]} Rf8 {[%emt 0:00:57]} 31. d5 {[%emt 0:01:38] The position is equal.} Rf6 {[%emt 0:08:51]} 32. Re7 {[%emt 0:01:41]} h6 {[%emt 0:03:26]} 33. e4 {[%emt 0:01:56] Hoping for e5.} Ra2 {[%emt 0:01:44]} 34. Rh7 {[%emt 0:00:55]} Re2 {[%emt 0:02:27]} 35. Ra1 {[%emt 0:01:57]} Kb8 {[%emt 0:00:04] Repels Ra8+} 36. Rb1 {[%emt 0:02:10]} Rxe4 {[%emt 0:03:12]} 37. dxc6 {[%emt 0:01:50]} Rxc6 {[%emt 0:00:52]} 38. Rbxb7+ {[%emt 0:00:55]} Kc8 {[%emt 0:03:14]} 39. Rbf7 {[%emt 0:00:50] White wants to mate with Rh8+.} Rc1+ {[%emt 0:00:23]} 40. Rf1 {[%emt 0:00:49]} Rxf1+ {[%emt 0:00:58]} 41. Kxf1 {[%emt 0:00:01] KR-KR} Re6 {[%emt 0:00:17]} 42. Rg7 {[%emt 0:00:06]} Re4 {[%emt 0:02:22]} 43. Rg6 {[%emt 0:00:40]} h5 {[%emt 0:00:08]} 44. Rg5 {[%emt 0:00:19]} Kd7 {[%emt 0:00:21]} 45. Rxh5 {[%emt 0:00:33]} Ke6 {[%emt 0:00:08]} 46. Kf2 {[%emt 0:00:54]} Kf6 {[%emt 0:00:51]} 47. Ra5 {[%emt 0:00:26]} Rb4 {[%emt 0:00:46]} 48. Ke3 {[%emt 0:00:18]} Rb3+ {[%emt 0:01:37]} 49. Kd4 {[%emt 0:00:44]} Rb2 {[%emt 0:01:23]} 50. Rh5 {[%emt 0:00:04]} Kg6 {[%emt 0:00:30]} 51. Rh8 {[%emt 0:00:06]} Kg5 {[%emt 0:00:27]} 52. Ke4 {[%emt 0:00:58]} Rb4+ {[%emt 0:00:16]} 53. Ke5 {[%emt 0:00:17]} Rb5+ {[%emt 0:00:10]} 54. Ke4 {[%emt 0:00:06]} Rb4+ {[%emt 0:00:03]} 55. Ke5 {[%emt 0:00:32]} Rb5+ {[%emt 0:00:03]} 56. Ke4 {[%emt 0:00:13] Weighted Error Value: White=0.05 (flawless) /Black=0.03 (flawless) .  Mistake:       	---       	Black=1      Inaccurate:     	White=2     	Black=1      OK:         	White=19    	Black=29     Best:        	White=1     	Black=2      Strong:       	---       	Black=1} 1/2-1/2

[Event "2nd Cambridge Open 2024"]
[Site "Cambridge"]
[Date "2024.02.21"]
[Round "5.4"]
[White "Adams, Michael"]
[Black "Fava, Lorenzo"]
[Result "1/2-1/2"]
[ECO "B12"]
[WhiteElo "2674"]
[BlackElo "2084"]
[Annotator "TA"]
[PlyCount "43"]
[EventDate "2024.02.18"]
[EventType "swiss"]
[EventCountry "ENG"]
[SourceTitle "playchess.com"]
[Source "ChessBase"]
[SourceQuality "1"]
[TimeControl "5400+30"]

{[%evp 9,43,24,22,19,8,9,19,14,19,11,12,12,15,10,14,-8,0,-7,0,0,0,-3,0,0,0,-29,-46,-82,-46,-51,-49,-52,-56,-46,-25,-27]} 1. e4 {[%emt 0:00:04]} c6 {[%emt 0:01:08]} 2. d4 {[%emt 0:00:13]} d5 {[%emt 0:00:07]} 3. e5 {[%emt 0:00:05]} c5 {[%emt 0:00:04]} 4. Nf3 {[%emt 0:00:06]} cxd4 {[%emt 0:01:24]} 5. Nxd4 {[%emt 0:00:08]} Nc6 {[%emt 0:00:31]} 6. Nxc6 {[%emt 0:00:21]} bxc6 {[%emt 0:00:06]} 7. Bd3 {[%emt 0:00:08]} e6 {[%emt 0:05:29]} 8. O-O {[%emt 0:01:03] The position is equal.} Ne7 {[%emt 0:00:50]} 9. Nd2 {[%emt 0:02:09]} Ng6 {[%emt 0:02:43]} 10. Nf3 {[%emt 0:09:38]} Be7 {[%emt 0:05:26]} 11. Re1 {[%emt 0:00:25]} O-O {[%emt 0:01:01]} 12. c4 {[%emt 0:09:06]} c5 {[%emt 0:13:34]} 13. Qc2 {[%emt 0:02:33][%cal Oh2h4]} Bb7 {[%emt 0:02:40]} 14. cxd5 {[%emt 0:00:21]} Bxd5 {[%emt 0:00:57]} 15. Be4 {[%emt 0:00:18]} Bxe4 {[%emt 0:02:47]} 16. Qxe4 {[%emt 0:01:25]} Rb8 {[%emt 0:01:28]} 17. Nd2 {[%emt 0:12:04]} Rb4 {[%emt 0:06:16]} 18. Qc6 {[%emt 0:10:09]} Bg5 {[%emt 0:08:18]} 19. Nf3 {[%emt 0:16:27]} Bxc1 {[%emt 0:00:26]} 20. Rexc1 {[%emt 0:01:55]} Rxb2 {[%emt 0:03:30] White must now prevent ...Nf4.} 21. Qxc5 {[%emt 0:01:05]} Nf4 {[%emt 0:03:46] [#] ...Ne2+ would now be deadly.} 22. Rc2 {[%emt 0:02:49] Weighted Error Value: White=0.07 (flawless) /Black=0.05 (flawless) .  Inaccurate:     	White=2     	Black=1      OK:         	White=7     	Black=8} 1/2-1/2

[Event "2nd Cambridge Open 2024"]
[Site "Cambridge"]
[Date "2024.02.21"]
[Round "5.5"]
[White "Pert, Richard G"]
[Black "Royal, Shreyas"]
[Result "1/2-1/2"]
[ECO "D02"]
[WhiteElo "2411"]
[BlackElo "2459"]
[Annotator "TA"]
[PlyCount "46"]
[EventDate "2024.02.18"]
[EventType "swiss"]
[EventCountry "ENG"]
[SourceTitle "playchess.com"]
[Source "ChessBase"]
[SourceQuality "1"]
[TimeControl "5400+30"]

{[%evp 9,46,0,23,-1,0,0,3,12,0,8,14,3,9,2,8,10,12,3,9,8,11,5,16,11,16,4,9,7,7,0,0,0,0,0,0,0,0,0,9]} 1. d4 {[%emt 0:00:23]} d5 {[%emt 0:00:24]} 2. Nf3 {[%emt 0:00:28]} Nf6 {[%emt 0:00:05]} 3. Bf4 {[%emt 0:00:08]} c5 {[%emt 0:00:29]} 4. e3 {[%emt 0:00:07]} Nc6 {[%emt 0:00:05]} 5. Nbd2 {[%emt 0:00:11]} Nh5 {[%emt 0:00:26]} 6. Be5 {[%emt 0:00:49]} e6 {[%emt 0:00:39] The position is equal.} 7. c4 {[%emt 0:01:46]} cxd4 {[%emt 0:00:40]} 8. cxd5 {[%emt 0:01:41]} Qxd5 {[%emt 0:00:05]} 9. Bxd4 {[%emt 0:03:56]} Bb4 {[%emt 0:02:09]} 10. a3 {[%emt 0:03:25]} Nxd4 {[%emt 0:00:06]} 11. Nxd4 {[%emt 0:02:12]} Bxd2+ {[%emt 0:00:50]} 12. Qxd2 {[%emt 0:00:18]} O-O {[%emt 0:00:14]} 13. Nf3 {[%emt 0:05:08]} Qxd2+ {[%emt 0:11:13]} 14. Kxd2 {[%emt 0:01:24]} Rd8+ {[%emt 0:01:39]} 15. Bd3 {[%emt 0:00:09]} b6 {[%emt 0:02:36]} 16. Ke2 {[%emt 0:01:13]} Bb7 {[%emt 0:00:06]} 17. Rhd1 {[%emt 0:01:00]} Rac8 {[%emt 0:04:29]} 18. Rac1 {[%emt 0:00:53]} Nf6 {[%emt 0:04:07]} 19. Bb5 {[%emt 0:05:23]} Rxd1 {[%emt 0:04:44]} 20. Rxc8+ {[%emt 0:01:22]} (20. Kxd1 $2 {perishes.} Rxc1+ 21. Kxc1 Ng4 $19 (21... Ne4 22. Nd4 $15)) 20... Bxc8 {[%emt 0:00:06]} 21. Kxd1 {[%emt 0:00:05]} Bb7 {[%emt 0:01:00]} 22. Ke2 {[%emt 0:02:12]} Kf8 {[%emt 0:00:50]} 23. g3 {[%emt 0:03:14]} a6 {[%emt 0:00:06] Not much happened in this game.   Weighted Error Value: White=0.04 (flawless) /Black=0.04 (flawless) .  OK:         	White=8     	Black=7} 1/2-1/2

[Event "2nd Cambridge Open 2024"]
[Site "Cambridge"]
[Date "2024.02.21"]
[Round "5.6"]
[White "Pozzari, Simone"]
[Black "Turner, Matthew J"]
[Result "1/2-1/2"]
[ECO "D15"]
[WhiteElo "2282"]
[BlackElo "2448"]
[Annotator "TA"]
[PlyCount "77"]
[EventDate "2024.02.18"]
[EventType "swiss"]
[EventCountry "ENG"]
[SourceTitle "playchess.com"]
[Source "ChessBase"]
[SourceQuality "1"]
[TimeControl "5400+30"]

{[%evp 9,77,31,36,10,35,41,40,28,34,31,41,48,40,32,27,36,71,72,72,72,72,46,55,33,31,37,41,22,29,12,24,16,52,51,39,0,0,0,0,0,0,0,0,0,0,0,0,0,0,0,73,59,47,67,158,-12,143,139,149,73,67,67,68,67,67,67,67,67,67,67]} 1. d4 {[%emt 0:00:09]} d5 {[%emt 0:01:07]} 2. c4 {[%emt 0:00:31]} c6 {[%emt 0:00:10]} 3. Nc3 {[%emt 0:00:23]} Nf6 {[%emt 0:00:15]} 4. e3 {[%emt 0:08:07]} a6 {[%emt 0:04:21]} 5. Nf3 {[%emt 0:00:43]} Bf5 {[%emt 0:07:04]} 6. Nh4 {[%emt 0:09:17]} Bg6 {[%emt 0:04:34]} 7. Nxg6 {[%emt 0:00:17]} hxg6 {[%emt 0:00:04]} 8. a3 {[%emt 0:00:42]} Nbd7 {[%emt 0:01:19]} 9. Qb3 {[%emt 0:02:47]} Qb6 {[%emt 0:02:13]} 10. Qxb6 {[%emt 0:00:54]} Nxb6 {[%emt 0:00:04]} 11. c5 {[%emt 0:00:08]} Nbd7 {[%emt 0:00:11][%cal Bb6d7,Bd7f6,Bf6d5][%mdl 32]} 12. f4 {[%emt 0:00:23]} Ne4 {[%emt 0:02:41]} 13. Nxe4 {[%emt 0:01:38]} dxe4 {[%emt 0:00:04]} 14. b4 {[%emt 0:04:20]} Nf6 {[%emt 0:00:58]} 15. Bc4 {[%emt 0:01:20]} e6 {[%emt 0:00:24]} 16. Bd2 {[%emt 0:01:17]} Be7 {[%emt 0:00:57]} 17. O-O {[%emt 0:00:28]} Nd5 {[%emt 0:01:01]} 18. a4 {[%emt 0:01:40][%cal Ba3a4,Ba4b5,Bb5b6][%mdl 32]} Kd7 {[%emt 0:03:31]} (18... f5 {simplifies} 19. Bxd5 exd5 20. g3 Kf7) 19. b5 {[%emt 0:05:43]} axb5 {[%emt 0:00:45]} 20. axb5 {[%emt 0:03:16]} Nc7 {[%emt 0:01:32]} 21. b6 {[%emt 0:02:19]} Nd5 {[%emt 0:00:07]} 22. Rfb1 {[%emt 0:04:58]} Rxa1 {[%emt 0:01:12]} 23. Rxa1 {[%emt 0:00:02]} f5 {[%emt 0:00:24]} 24. Ra7 {[%emt 0:01:07]} Rb8 {[%emt 0:00:05]} 25. Kf2 {[%emt 0:09:39]} g5 {[%emt 0:02:35]} 26. fxg5 {[%emt 0:00:58]} Bxg5 {[%emt 0:00:07]} 27. Ke2 {[%emt 0:00:23]} g6 {[%emt 0:05:07]} 28. Be1 {[%emt 0:06:50] Threatens to win with Bxd5.} Nxe3 {[%emt 0:10:47]} 29. Ba6 {[%emt 0:00:57] aiming for Bd2.} Nc2 {[%emt 0:00:13] [#]} (29... e5 $1 $11 {keeps the balance.} 30. dxe5 (30. Bxb7 $2 {too greedy.} exd4 31. Ba5 d3+ 32. Kf2 Ke6 $19) 30... Nxg2 31. Bxb7 (31. Rxb7+ Rxb7 32. Bxb7 Nf4+ 33. Kf1 Ne6 $15) 31... Nxe1 32. Kxe1 Bd8 (32... Be3 33. Bc8+ Kxc8 34. Rc7+ Kd8 35. Rh7 $11)) 30. Bc3 $1 $16 {[%emt 0:02:54]} (30. Rxb7+ Rxb7 31. Bxb7 Nxd4+ 32. Kd1 Be7 $17) 30... Kc8 {[%emt 0:03:21][%cal Og5f6]} 31. Bc4 {[%emt 0:09:55]} Bf6 {[%emt 0:00:48]} ({Better is} 31... Kd7 $14) 32. Bxe6+ {[%emt 0:17:20]} Kd8 {[%emt 0:00:11]} 33. Ra4 {[%emt 0:00:45] Bb3 would now be deadly.} f4 {[%emt 0:00:25] [#]} 34. Bf7 {[%emt 0:00:27]} (34. Ba2 $142 $1) 34... Ke7 {[%emt 0:04:20]} 35. Bxg6 {[%emt 0:00:06] White is slightly better.} Rd8 {[%emt 0:00:08][%cal Rc2d4]} 36. Bxe4 {[%emt 0:03:50]} Nxd4+ {[%emt 0:00:18]} 37. Bxd4 {[%emt 0:01:25]} Rxd4 {[%emt 0:00:17]} 38. Rxd4 {[%emt 0:00:48]} Bxd4 {[%emt 0:00:05]} 39. Kf3 {[%emt 0:00:35] Weighted Error Value: White=0.09 (flawless) /Black=0.13 (very precise) .  Mistake:       	White=1     	Black=2      Inaccurate:     	White=2     	Black=3      OK:         	White=12    	Black=12     Best:        	White=1     	Black=3      Strong:       	White=1     	---} 1/2-1/2

[Event "2nd Cambridge Open 2024"]
[Site "Cambridge"]
[Date "2024.02.21"]
[Round "5.7"]
[White "Hanley, Craig A"]
[Black "Wells, Peter K"]
[Result "1/2-1/2"]
[ECO "D00"]
[WhiteElo "2431"]
[BlackElo "2341"]
[Annotator "TA"]
[PlyCount "26"]
[EventDate "2024.02.18"]
[EventType "swiss"]
[EventCountry "ENG"]
[SourceTitle "playchess.com"]
[Source "ChessBase"]
[SourceQuality "1"]
[TimeControl "5400+30"]

{[%evp 9,26,0,-2,0,0,-8,31,15,26,0,0,-70,-67,-76,-62,-58,-55,-73,-45]} 1. d4 {[%emt 0:00:04]} Nf6 {[%emt 0:03:45]} 2. Bf4 {[%emt 0:00:20]} d5 {[%emt 0:00:31]} 3. e3 {[%emt 0:03:00]} c5 {[%emt 0:00:38]} 4. c3 {[%emt 0:01:37]} Nc6 {[%emt 0:00:20]} 5. Nd2 {[%emt 0:00:20]} Bf5 {[%emt 0:01:43]} 6. Ngf3 {[%emt 0:00:42]} Qb6 {[%emt 0:05:27]} 7. Nh4 {[%emt 0:01:57] [#] Hoping for dxc5.} Be4 {[%emt 0:09:08]} 8. f3 {[%emt 0:12:11] White is slightly better.} Bg6 {[%emt 0:01:36]} 9. Nxg6 {[%emt 0:23:43]} hxg6 {[%emt 0:00:12]} 10. Qa4 {[%emt 0:00:42]} (10. g4 $11) 10... cxd4 $15 {[%emt 0:12:10]} (10... Qxb2 $2 {loses.} 11. Rb1 Qxc3 12. Rxb7 Qc1+ (12... cxd4 $2 13. Bb5 $18) 13. Ke2 cxd4 14. Rc7 d3+ 15. Kxd3 $18) 11. cxd4 {[%emt 0:10:31] [#]} Nh5 $1 {[%emt 0:03:46][%cal Oh5f4]} 12. Bb5 {[%emt 0:03:08]} Nxf4 {[%emt 0:12:43]} 13. exf4 {[%emt 0:00:34]} a6 {[%emt 0:06:45] White got outplayed after the opening.   Weighted Error Value: White=0.21 (precise) /Black=0.08 (flawless) .  Mistake:       	White=1     	---        Inaccurate:     	White=1     	Black=2      OK:         	White=2     	Black=4      Strong:       	---       	Black=1} 1/2-1/2

[Event "2nd Cambridge Open 2024"]
[Site "Cambridge"]
[Date "2024.02.21"]
[Round "5.8"]
[White "Haubro, Martin"]
[Black "Rushbrooke, Remy"]
[Result "1-0"]
[ECO "A50"]
[WhiteElo "2418"]
[BlackElo "2049"]
[Annotator "RC"]
[PlyCount "49"]
[EventDate "2024.02.18"]
[EventType "swiss"]
[EventCountry "ENG"]
[SourceTitle "playchess.com"]
[Source "ChessBase"]
[SourceQuality "1"]
[TimeControl "5400+30"]

1. d4 {[%emt 0:00:03]} Nf6 {[%emt 0:02:56]} 2. c4 {[%emt 0:00:05]} Nc6 {[%emt 0:00:33]} 3. Nc3 {[%emt 0:00:15]} e5 {[%emt 0:00:05]} 4. d5 {[%emt 0:00:04]} Ne7 {[%emt 0:00:03]} 5. Nf3 {[%emt 0:00:05]} Ng6 {[%emt 0:00:21]} 6. h4 {[%emt 1:32:58]} h5 {[%emt 0:01:03]} 7. Bg5 {[%emt 0:00:00]} Bc5 {[%emt 0:03:31]} 8. a3 {[%emt 0:00:00]} a5 {[%emt 0:01:40]} 9. e3 {[%emt 0:00:00]} d6 {[%emt 0:01:39]} 10. Ne4 {[%emt 0:00:00]} Bf5 {[%emt 0:01:39]} 11. Nfd2 {[%emt 0:00:00]} Nf8 {[%emt 0:05:17]} 12. Bxf6 {[%emt 0:00:00]} gxf6 {[%emt 0:00:04]} 13. Qf3 {[%emt 0:00:00]} Bxe4 {[%emt 0:01:30]} 14. Nxe4 {[%emt 0:00:00]} Nd7 {[%emt 0:00:06]} 15. Qf5 {[%emt 0:00:00]} Qe7 {[%emt 0:03:37]} 16. Be2 {[%emt 0:00:00]} Qf8 {[%emt 0:10:40]} 17. Bxh5 {[%emt 0:00:00]} Qg7 {[%emt 0:00:15]} 18. Bg4 {[%emt 0:00:00]} Rd8 {[%emt 0:00:03]} 19. h5 {[%emt 0:00:00]} Rh6 {[%emt 0:03:06]} 20. Ke2 {[%emt 0:00:00]} Nf8 {[%emt 0:01:48]} 21. b4 {[%emt 0:00:00]} axb4 {[%emt 0:01:13]} 22. axb4 {[%emt 0:00:00]} Bxb4 {[%emt 0:00:03]} 23. Rhb1 {[%emt 0:00:00]} Bc5 {[%emt 0:00:24]} 24. Nxc5 {[%emt 0:00:00]} dxc5 {[%emt 0:00:04]} 25. Rxb7 {[%emt 0:00:00]} 1-0